bitfinex/quotes_BTCUSD_20230103
["timestamp","ask_amount","ask_price","bid_price","bid_amount"]
[1672739009846,0.00696339,16770.0,16769.0,4.39695184]
[1672739010088,0.00696339,16770.0,16769.0,3.69695184]
[1672739010573,0.54404711,16770.0,16769.0,4.39695184]
[1672739010787,0.00696339,16770.0,16769.0,4.39695184]
[1672739011069,0.54404711,16770.0,16769.0,4.39695184]
[1672739012060,0.54404711,16770.0,16769.0,3.80061384]
[1672739012526,0.81246033,16770.0,16769.0,3.80061384]
[1672739012769,0.45446169,16770.0,16769.0,3.80061384]
[1672739014083,0.81245553,16770.0,16769.0,3.80061384]
[1672739014819,0.81245956,16770.0,16769.0,3.80061384]
[1672739016350,0.81245956,16770.0,16769.0,4.41511184]
[1672739016592,0.81245956,16770.0,16769.0,3.71511184]
[1672739017630,0.81245956,16770.0,16769.0,3.80061384]
[1672739018981,0.45446169,16770.0,16769.0,4.41511184]
[1672739019173,0.00696339,16770.0,16769.0,4.41511184]
[1672739020186,0.81248184,16770.0,16769.0,4.41511184]
[1672739021116,0.81248184,16770.0,16769.0,4.41502881]
[1672739021897,0.81249944,16770.0,16769.0,4.41502881]
[1672739024635,0.00696339,16770.0,16769.0,4.41502881]
[1672739024887,0.00696339,16770.0,16769.0,5.59672881]
[1672739025637,0.00696339,16770.0,16769.0,4.89672881]
[1672739026633,0.81249696,16770.0,16769.0,4.89672881]
[1672739026879,0.00696339,16770.0,16769.0,5.59672881]
[1672739027613,0.45449291,16770.0,16769.0,5.59672881]
[1672739028141,0.00696339,16770.0,16769.0,5.59672881]
[1672739029388,0.8125209,16770.0,16769.0,5.59672881]
[1672739030638,0.8125209,16770.0,16769.0,4.91313691]
[1672739030890,0.63351225,16770.0,16769.0,4.91313691]
[1672739031148,0.45449534,16770.0,16769.0,6.21958612]
[1672739031421,0.45449534,16770.0,16769.0,6.08838027]
[1672739032368,0.6335137,16770.0,16769.0,6.08838027]
[1672739032628,0.6335137,16770.0,16769.0,5.49204227]
[1672739033369,0.6335137,16770.0,16769.0,5.50100911]
[1672739034390,0.6335137,16770.0,16769.0,4.91313691]
[1672739034636,0.6335137,16770.0,16769.0,5.49015459]
[1672739034861,0.45449534,16770.0,16769.0,5.49015459]
[1672739035636,0.45449534,16770.0,16769.0,4.91313691]
[1672739035637,0.45449534,16770.0,16769.0,5.50947491]
[1672739035835,0.45449534,16770.0,16769.0,6.05047232]
[1672739036089,0.63344046,16770.0,16769.0,6.05047232]
[1672739037346,0.63344046,16770.0,16769.0,5.35047232]
[1672739037594,0.63344046,16770.0,16769.0,4.73597432]
[1672739038357,0.63344046,16770.0,16769.0,6.05047232]
[1672739039132,0.81248224,16770.0,16769.0,6.05047232]
[1672739039651,0.00696339,16770.0,16769.0,6.05047232]
[1672739040651,0.00696339,16770.0,16769.0,5.45413432]
[1672739041772,0.00696339,16770.0,16769.0,5.4540488]
[1672739041992,0.81243195,16770.0,16769.0,5.4540488]
[1672739042217,0.81243195,16770.0,16769.0,4.8395508]
[1672739044495,0.81243486,16770.0,16769.0,4.8395508]
[1672739045470,0.00696339,16770.0,16769.0,4.8395508]
[1672739046244,0.4544714,16770.0,16769.0,4.8395508]
[1672739046484,0.00696339,16770.0,16769.0,4.8395508]
[1672739047000,0.81246751,16770.0,16769.0,4.8395508]
[1672739047278,0.4544663,16770.0,16769.0,4.8395508]
[1672739048062,0.81247878,16770.0,16769.0,4.8395508]
[1672739048282,0.00696339,16770.0,16769.0,4.8395508]
[1672739049031,0.54404711,16770.0,16769.0,4.8395508]
[1672739049808,0.54404711,16770.0,16769.0,3.85332823]
[1672739050060,0.54402925,16770.0,16769.0,2.67162823]
[1672739050307,0.10233339,16770.0,16769.0,2.67162823]
[1672739050621,0.00696339,16770.0,16769.0,2.67162823]
[1672739051330,0.54389402,16770.0,16769.0,2.67162823]
[1672739052095,0.54389402,16770.0,16769.0,3.31378149]
[1672739054363,0.00696339,16770.0,16769.0,3.31378149]
[1672739054863,0.54389402,16770.0,16769.0,3.31365]
[1672739055119,0.00696339,16770.0,16769.0,3.31365]
[1672739056815,0.54389402,16770.0,16769.0,4.45105]
[1672739057842,0.45425779,16770.0,16769.0,4.45105]
[1672739058335,0.00696339,16770.0,16769.0,4.45105]
[1672739059609,0.54389402,16770.0,16769.0,4.45105]
[1672739059859,0.00696339,16770.0,16769.0,4.45105]
[1672739060135,0.54389402,16770.0,16769.0,3.80902823]
[1672739062216,0.54389402,16770.0,16769.0,4.45151016]
[1672739062675,0.00696339,16770.0,16769.0,4.45151016]
[1672739063184,0.54389402,16770.0,16769.0,4.45140088]
[1672739063950,0.45419503,16770.0,16769.0,4.45140088]
[1672739064188,0.54389402,16770.0,16769.0,4.45140088]
[1672739064445,0.54389402,16770.0,16769.0,4.45072327]
[1672739064949,0.54389402,16770.0,16769.0,3.80891895]
[1672739065468,0.54389402,16770.0,16769.0,4.45108888]
[1672739066440,0.00696339,16770.0,16769.0,4.45108888]
[1672739067178,0.00696339,16770.0,16769.0,3.75108888]
[1672739067442,0.45415057,16770.0,16769.0,3.75108888]
[1672739068177,0.45415057,16770.0,16769.0,4.45108888]
[1672739068422,0.00696339,16770.0,16769.0,4.45108888]
[1672739068887,0.54389402,16770.0,16769.0,4.45108888]
[1672739069389,0.54389402,16770.0,16769.0,3.21258095]
[1672739070149,0.54389402,16770.0,16769.0,3.85463855]
[1672739070441,0.54389402,16770.0,16769.0,2.61624295]
[1672739071712,0.54389402,16770.0,16769.0,3.25860682]
[1672739071959,0.00696339,16770.0,16769.0,3.96262124]
[1672739073940,0.00696339,16770.0,16769.0,3.96245025]
[1672739074441,0.54389402,16770.0,16769.0,3.96245025]
[1672739074688,0.54389402,16770.0,16769.0,4.55878825]
[1672739074938,0.54389402,16770.0,16769.0,3.85477383]
[1672739075694,0.4940064,16770.0,16769.0,3.85477383]
[1672739075930,0.4940064,16770.0,16769.0,3.15477383]
[1672739076188,0.4940064,16770.0,16769.0,2.85832124]
[1672739076943,0.4940064,16770.0,16769.0,4.20111902]
[1672739081841,0.4940064,16770.0,16769.0,3.55832124]
[1672739082852,0.4940064,16770.0,16769.0,2.85832124]
[1672739083116,0.4940064,16770.0,16769.0,3.50170289]
[1672739083903,0.4940064,16770.0,16769.0,4.20170289]
[1672739087418,0.00596339,16770.0,16769.0,4.20170289]
[1672739090171,0.00596339,16770.0,16769.0,3.55832124]
[1672739090669,0.54328571,16770.0,16769.0,3.55832124]
[1672739092939,0.54328571,16770.0,16769.0,4.20191741]
[1672739094467,0.00596339,16770.0,16769.0,4.20191741]
[1672739094727,0.61061407,16770.0,16769.0,3.55832124]
[1672739095505,0.00596339,16770.0,16769.0,4.20201072]
[1672739095758,0.00596339,16770.0,16769.0,2.96198324]
[1672739097070,0.61061407,16770.0,16769.0,2.96198324]
[1672739097314,0.00596339,16770.0,16769.0,2.96198324]
[1672739098336,0.00596339,16770.0,16769.0,2.96191425]
[1672739098595,0.61061407,16770.0,16769.0,2.96191425]
[1672739099082,0.00596339,16770.0,16769.0,2.96191425]
[1672739099814,0.00596339,16770.0,16769.0,3.60553358]
[1672739100347,0.54327598,16770.0,16769.0,3.60553358]
[1672739100857,0.00596339,16770.0,16769.0,3.60553358]
[1672739101354,0.54326672,16770.0,16769.0,4.20187158]
[1672739103088,0.54326672,16770.0,16769.0,3.65910716]
[1672739103335,0.54326672,16770.0,16769.0,4.31952509]
[1672739104611,0.54326672,16770.0,16769.0,4.91586309]
[1672739107121,0.00596339,16770.0,16769.0,4.91586309]
[1672739107406,0.00596339,16770.0,16769.0,5.53036109]
[1672739107622,0.00596339,16770.0,16769.0,5.70826109]
[1672739109140,0.00596339,16770.0,16769.0,5.53036109]
[1672739109386,0.00596339,16770.0,16769.0,4.91586309]
[1672739110397,0.45348878,16770.0,16769.0,4.91586309]
[1672739110910,0.00596339,16770.0,16769.0,4.91586309]
[1672739111402,0.45344583,16770.0,16769.0,4.91586309]
[1672739112164,0.00596339,16770.0,16769.0,4.91586309]
[1672739112913,0.45344173,16770.0,16769.0,4.91586309]
[1672739113166,0.45344173,16770.0,16769.0,4.25544516]
[1672739113425,0.81140487,16770.0,16769.0,3.85544516]
[1672739113672,0.81140487,16770.0,16769.0,4.85178316]
[1672739113927,1.07981847,16770.0,16769.0,4.85178316]
[1672739114213,0.81140487,16770.0,16769.0,4.85178316]
[1672739114468,0.81140487,16770.0,16769.0,5.48347679]
[1672739114934,0.81132843,16770.0,16769.0,5.48347679]
[1672739115471,0.45344173,16770.0,16769.0,5.48347679]
[1672739115976,0.81130691,16770.0,16769.0,5.48347679]
[1672739116431,0.81130691,16770.0,16769.0,6.09797479]
[1672739118215,0.81130691,16770.0,16769.0,5.48347679]
[1672739118719,0.81130691,16770.0,16769.0,5.56969361]
[1672739118720,1.07967866,16770.0,16769.0,5.56969361]
[1672739119047,1.07967939,16770.0,16769.0,5.74689361]
[1672739119254,0.63210622,16770.0,16769.0,6.36139161]
[1672739119755,0.63210622,16770.0,16769.0,5.66139161]
[1672739120000,0.63210622,16770.0,16769.0,4.94348116]
[1672739120733,0.63210622,16770.0,16769.0,5.64348116]
[1672739120986,0.8109999,16770.0,16769.0,5.94348116]
[1672739121236,0.45322955,16770.0,16769.0,5.94348116]
[1672739121487,0.45322223,16770.0,16769.0,5.94348116]
[1672739121741,0.27433587,16770.0,16769.0,6.20594526]
[1672739122239,0.72181421,16770.0,16769.0,6.20594526]
[1672739122507,0.45344173,16770.0,16769.0,6.20594526]
[1672739124026,0.45284771,16770.0,16769.0,6.20594526]
[1672739125065,0.72115685,16770.0,16769.0,6.20594526]
[1672739125390,0.45284771,16770.0,16769.0,6.20594526]
[1672739125818,0.72115603,16770.0,16769.0,6.20594526]
[1672739126060,0.45284771,16770.0,16769.0,6.20594526]
[1672739126338,0.72115626,16770.0,16769.0,6.20594526]
[1672739127106,0.27427194,16770.0,16769.0,6.20594526]
[1672739127362,0.63200964,16770.0,16769.0,6.20594526]
[1672739130375,0.63200964,16770.0,16769.0,5.50594526]
[1672739130616,0.63200964,16770.0,16769.0,4.89144726]
[1672739131360,0.81088472,16770.0,16769.0,5.59144726]
[1672739131865,0.6320216,16770.0,16769.0,5.59144726]
[1672739132327,0.6320216,16770.0,16769.0,6.20594526]
[1672739132859,0.6320216,16770.0,16769.0,5.59144726]
[1672739134099,0.6320216,16770.0,16769.0,6.20594526]
[1672739134347,0.81088472,16770.0,16769.0,6.20594526]
[1672739134902,0.63202689,16770.0,16769.0,6.20594526]
[1672739136600,0.63202689,16770.0,16769.0,5.64348116]
[1672739136854,0.63202689,16770.0,16769.0,6.15758852]
[1672739138075,0.81088472,16770.0,16769.0,6.15758852]
[1672739138549,1.07935087,16770.0,16769.0,6.15758852]
[1672739139299,0.45314702,16770.0,16769.0,6.15758852]
[1672739139552,0.81122072,16770.0,16769.0,6.15758852]
[1672739141589,0.81122072,16770.0,16769.0,5.94348116]
[1672739142309,0.63258155,16770.0,16769.0,5.94348116]
[1672739142583,0.63258155,16770.0,16769.0,6.5193201]
[1672739143058,0.63258155,16770.0,16769.0,5.94348116]
[1672739143346,0.63258155,16770.0,16769.0,6.62346172]
[1672739143566,0.63258155,16770.0,16769.0,5.94348116]
[1672739144064,1.0797772,16770.0,16769.0,5.94348116]
[1672739144575,0.63259357,16770.0,16769.0,5.94348116]
[1672739144822,0.63259357,16770.0,16769.0,6.47222224]
[1672739145075,0.63259357,16770.0,16769.0,6.63464352]
[1672739145858,0.81162833,16770.0,16769.0,5.9434133]
[1672739146105,0.45355463,16770.0,16769.0,6.56359086]
[1672739146356,0.63259357,16770.0,16769.0,6.56359086]
[1672739146582,0.63259357,16770.0,16769.0,5.9434133]
[1672739146583,1.0797772,16770.0,16769.0,5.9434133]
[1672739146797,0.63259357,16770.0,16769.0,5.56224662]
[1672739147017,0.81106805,16770.0,16769.0,5.56224662]
[1672739147515,0.81106805,16770.0,16769.0,5.0289153]
[1672739147761,0.63245316,16770.0,16769.0,5.0289153]
[1672739148200,0.63245316,16770.0,16769.0,5.3289153]
[1672739148477,0.63245316,16770.0,16769.0,5.89871285]
[1672739148721,0.63245316,16770.0,16769.0,5.59871285]
[1672739148973,0.63245316,16770.0,16769.0,5.3289153]
[1672739149290,0.63245316,16770.0,16769.0,5.9434133]
[1672739149766,0.63245316,16770.0,16769.0,6.3099166]
[1672739150295,0.45314702,16770.0,16769.0,6.3099166]
[1672739150549,0.45314702,16770.0,16769.0,5.96417631]
[1672739150813,0.45314702,16770.0,16769.0,5.6954186]
[1672739153737,0.45314702,16770.0,16769.0,6.3099166]
[1672739154532,0.45314702,16770.0,16769.0,5.59647692]
[1672739154777,0.45314702,16770.0,16769.0,5.71596249]
[1672739155269,0.81125682,16770.0,16769.0,5.71596249]
[1672739155783,0.45314702,16770.0,16769.0,5.71596249]
[1672739156073,0.00596339,16770.0,16769.0,5.71596249]
[1672739156955,0.00596339,16770.0,16769.0,5.01596249]
[1672739157927,0.45361592,16770.0,16769.0,5.71596249]
[1672739158244,0.45361539,16770.0,16769.0,5.71596249]
[1672739158873,0.45361539,16770.0,16769.0,6.69723119]
[1672739159124,0.00596339,16770.0,16769.0,6.69723119]
[1672739159667,0.45360966,16770.0,16769.0,6.69723119]
[1672739160237,0.00596339,16770.0,16769.0,6.69723119]
[1672739160487,0.00596339,16770.0,16769.0,7.31172919]
[1672739160753,0.45361236,16770.0,16769.0,7.31172919]
[1672739162527,0.45361236,16770.0,16769.0,6.69723119]
[1672739163964,0.45361236,16770.0,16769.0,5.99723119]
[1672739164924,0.45361236,16770.0,16769.0,6.69723119]
[1672739165422,0.00596339,16770.0,16769.0,6.69723119]
[1672739166181,0.45361539,16770.0,16769.0,6.69723119]
[1672739167197,0.45361539,16770.0,16769.0,5.71596249]
[1672739167443,0.45361539,16770.0,16769.0,5.71586964]
[1672739167682,0.39605989,16770.0,16769.0,5.71586964]
[1672739167896,0.39605989,16770.0,16769.0,5.04936634]
[1672739168914,0.39605989,16770.0,16769.0,5.7327]
[1672739169400,0.00596339,16770.0,16769.0,5.7327]
[1672739170130,0.00596339,16770.0,16769.0,6.347198]
[1672739171288,0.00596339,16770.0,16769.0,5.647198]
[1672739171715,0.36407679,16770.0,16769.0,5.647198]
[1672739171957,0.36407679,16770.0,16769.0,6.347198]
[1672739174629,0.63265778,16770.0,16769.0,6.647198]
[1672739175891,1.08028711,16770.0,16769.0,6.647198]
[1672739176105,1.08028711,16770.0,16769.0,6.347198]
[1672739176355,0.81171055,16770.0,16769.0,6.347198]
[1672739176619,0.81171055,16770.0,16769.0,6.647198]
[1672739176871,0.81171055,16770.0,16769.0,6.347198]
[1672739177117,1.08028748,16770.0,16769.0,6.647198]
[1672739177388,0.81171055,16770.0,16769.0,6.347198]
[1672739177650,0.45359715,16770.0,16769.0,6.347198]
[1672739178102,0.45359715,16770.0,16769.0,5.7327]
[1672739180833,0.81171177,16770.0,16769.0,5.7327]
[1672739181613,0.45359715,16770.0,16769.0,5.7327]
[1672739181829,0.45359715,16770.0,16769.0,6.347198]
[1672739182348,0.81170935,16770.0,16769.0,5.7327]
[1672739182850,0.81170935,16770.0,16769.0,5.73122297]
[1672739183132,0.81170935,16770.0,16769.0,5.03122297]
[1672739184132,0.81170935,16770.0,16769.0,5.73122297]
[1672739184384,0.81170935,16770.0,16769.0,6.34572097]
[1672739185261,0.45359715,16770.0,16769.0,6.34572097]
[1672739185795,0.45359715,16770.0,16769.0,5.73122297]
[1672739186318,0.81175192,16770.0,16769.0,5.73122297]
[1672739187044,0.45359715,16770.0,16769.0,5.73122297]
[1672739187293,0.00596339,16770.0,16769.0,5.73122297]
[1672739187596,0.45365743,16770.0,16769.0,5.73122297]
[1672739188781,0.00596339,16770.0,16769.0,5.73122297]
[1672739189309,0.45366824,16770.0,16769.0,5.73122297]
[1672739194785,0.45371273,16770.0,16769.0,5.73122297]
[1672739195031,0.00596339,16770.0,16769.0,5.73122297]
[1672739195291,0.45371254,16770.0,16769.0,5.73122297]
[1672739196285,0.45371157,16770.0,16769.0,5.73122297]
[1672739196535,0.00596339,16770.0,16769.0,5.73122297]
[1672739200053,0.54326672,16770.0,16769.0,5.73122297]
[1672739202633,0.00596339,16770.0,16769.0,5.73122297]
[1672739202884,0.00596339,16770.0,16769.0,5.13488497]
[1672739203093,0.54326672,16770.0,16769.0,5.13488497]
[1672739203318,0.54326672,16770.0,16769.0,4.53854697]
[1672739203569,0.00596339,16770.0,16769.0,4.53854697]
[1672739203829,0.00596339,16770.0,16769.0,3.71772764]
[1672739203830,0.54316062,16770.0,16769.0,3.71772764]
[1672739204049,0.54316062,16770.0,16769.0,3.37198735]
[1672739205308,0.00596339,16770.0,16769.0,3.37198735]
[1672739206267,0.54305678,16770.0,16769.0,3.37198735]
[1672739207296,0.54291611,16770.0,16769.0,3.37191547]
[1672739207511,0.54291611,16770.0,16769.0,2.77557747]
[1672739210687,0.54291611,16770.0,16769.0,2.07557747]
[1672739211642,0.54291611,16770.0,16769.0,2.77557747]
[1672739212259,0.54273449,16770.0,16769.0,2.77557747]
[1672739212439,0.00596339,16770.0,16769.0,2.77557747]
[1672739212661,0.5426412,16770.0,16769.0,2.77557747]
[1672739214408,0.5426412,16770.0,16769.0,3.41622085]
[1672739215423,0.54253934,16770.0,16769.0,3.41622085]
[1672739215627,0.00586153,16770.0,16769.0,3.41622085]
[1672739216372,0.54253934,16770.0,16769.0,3.41622085]
[1672739219121,0.54253934,16770.0,16769.0,2.77557747]
[1672739219639,0.54253934,16770.0,16769.0,3.41615804]
[1672739220558,0.54253934,16770.0,16769.0,3.41595646]
[1672739222036,0.54253934,16770.0,16769.0,2.71595646]
[1672739223333,0.54253934,16770.0,16769.0,3.41595646]
[1672739228122,0.54253934,16770.0,16769.0,2.77557747]
[1672739228366,0.54253934,16770.0,16769.0,3.41583719]
[1672739229151,0.54253934,16770.0,16769.0,2.71583719]
[1672739230158,0.54253934,16770.0,16769.0,3.41583719]
[1672739235808,0.54253934,16770.0,16769.0,4.01217519]
[1672739236030,0.54253934,16770.0,16769.0,3.31217519]
[1672739237189,0.54253934,16770.0,16769.0,4.01217519]
[1672739239489,0.54253934,16770.0,16769.0,4.01208218]
[1672739243159,0.54253934,16770.0,16769.0,3.31208218]
[1672739244232,0.54253934,16770.0,16769.0,4.01208218]
[1672739245131,0.00586153,16770.0,16769.0,4.01208218]
[1672739245651,0.00586153,16770.0,16769.0,3.37182246]
[1672739246164,0.61051221,16770.0,16769.0,3.37182246]
[1672739246665,0.00586153,16770.0,16769.0,3.37182246]
[1672739247247,0.61051221,16770.0,16769.0,2.77548446]
[1672739248533,0.00586153,16770.0,16769.0,3.41676583]
[1672739248788,0.00586153,16770.0,16769.0,2.77548446]
[1672739249809,0.00586153,16770.0,16769.0,3.41639754]
[1672739250539,0.00586153,16770.0,16769.0,2.77548446]
[1672739250789,0.00586153,16770.0,16769.0,3.41653128]
[1672739251321,0.00586153,16770.0,16769.0,2.77548446]
[1672739252590,0.00586153,16770.0,16769.0,2.07548446]
[1672739253312,0.61051221,16770.0,16769.0,2.07548446]
[1672739253565,0.61051221,16770.0,16769.0,2.77548446]
[1672739255636,0.00586153,16770.0,16769.0,3.41661531]
[1672739258464,1.19840318,16771.0,16770.0,0.89499959]
[1672739258766,1.19840318,16771.0,16770.0,1.74073988]
[1672739259007,1.20436621,16771.0,16770.0,1.74073988]
[1672739259741,1.20436621,16771.0,16770.0,1.14382722]
[1672739260246,1.20536621,16771.0,16770.0,1.27382722]
[1672739260708,1.20536621,16771.0,16770.0,1.97382722]
[1672739263538,0.60071553,16771.0,16770.0,1.97382722]
[1672739265272,1.19698253,16771.0,16770.0,1.97382722]
[1672739265528,1.19687274,16771.0,16770.0,1.97382722]
[1672739266744,1.19687274,16771.0,16770.0,1.27382722]
[1672739267447,1.19687274,16771.0,16770.0,1.97382722]
[1672739268210,1.19680614,16771.0,16770.0,1.97382722]
[1672739278219,1.19680614,16771.0,16770.0,1.27382722]
[1672739279245,1.19680614,16771.0,16770.0,1.97382722]
[1672739285372,1.19680614,16771.0,16770.0,1.27382722]
[1672739286354,1.19680614,16771.0,16770.0,1.97382722]
[1672739289460,1.19680614,16771.0,16770.0,1.97371803]
[1672739292733,1.79307314,16771.0,16770.0,1.97371803]
[1672739293485,1.79307314,16771.0,16770.0,1.27882763]
[1672739295563,2.1221447,16771.0,16770.0,1.27882763]
[1672739296019,1.79307314,16771.0,16770.0,1.27882763]
[1672739305387,1.79207314,16771.0,16770.0,1.14882763]
[1672739306394,1.79407314,16771.0,16770.0,1.26482763]
[1672739309137,1.79407314,16771.0,16770.0,0.56482763]
[1672739310159,1.79407314,16771.0,16770.0,1.26476135]
[1672739313338,1.79407314,16771.0,16770.0,1.26241191]
[1672739319322,1.79407314,16771.0,16770.0,0.56241191]
[1672739320300,1.79407314,16771.0,16770.0,1.26241191]
[1672739322563,2.67403328,16771.0,16770.0,0.56241191]
[1672739322864,3.02091484,16771.0,16770.0,0.56241191]
[1672739324088,2.1409547,16771.0,16770.0,0.56241191]
[1672739326854,3.02091484,16771.0,16770.0,0.56241191]
[1672739327379,3.32091484,16771.0,16770.0,0.56241191]
[1672739332307,3.02091484,16771.0,16770.0,0.56241191]
[1672739333293,2.67403328,16771.0,16770.0,0.56241191]
[1672739333574,2.67403328,16771.0,16770.0,0.56027923]
[1672739336108,2.97403328,16771.0,16770.0,0.56027923]
[1672739336359,2.67403328,16771.0,16770.0,0.56027923]
[1672739340528,1.79407314,16771.0,16770.0,0.56027923]
[1672739341793,2.1409547,16771.0,16770.0,0.56027923]
[1672739342564,1.79407314,16771.0,16770.0,0.56027923]
[1672739355124,1.79395688,16771.0,16770.0,1.24918816]
[1672739356829,1.79381276,16771.0,16770.0,1.24918816]
[1672739374638,1.79381276,16771.0,16770.0,0.56027923]
[1672739379853,1.79381276,16771.0,16770.0,0.56020132]
[1672739386045,1.79381276,16771.0,16770.0,1.26151056]
[1672739389602,1.79381276,16771.0,16770.0,1.96151056]
[1672739391001,1.79381276,16771.0,16770.0,2.78278229]
[1672739391002,0.00796303,16771.0,16770.0,2.78278229]
[1672739391271,0.61235124,16771.0,16770.0,2.78278229]
[1672739392082,1.20861824,16771.0,16770.0,2.78278229]
[1672739392302,1.80488524,16771.0,16770.0,2.78278229]
[1672739392589,0.61235124,16771.0,16770.0,2.78278229]
[1672739393105,0.00796303,16771.0,16770.0,2.78278229]
[1672739393354,0.61235124,16771.0,16770.0,2.78278229]
[1672739394123,0.00796303,16771.0,16770.0,2.78278229]
[1672739394650,0.61235124,16771.0,16770.0,2.78278229]
[1672739394968,0.00796303,16771.0,16770.0,2.78278229]
[1672739399036,0.54467789,16771.0,16770.0,2.78278229]
[1672739402046,0.00796303,16771.0,16770.0,2.78278229]
[1672739404878,0.00796303,16771.0,16770.0,2.78270618]
[1672739409607,0.00796303,16771.0,16770.0,2.08270618]
[1672739410576,0.00796303,16771.0,16770.0,2.78270618]
[1672739413812,0.00796303,16771.0,16770.0,2.78049355]
[1672739416120,0.00796303,16771.0,16770.0,3.37679555]
[1672739416631,0.00796303,16771.0,16770.0,3.99129355]
[1672739416889,0.54470296,16771.0,16770.0,3.99129355]
[1672739417127,0.54470296,16771.0,16770.0,3.37679555]
[1672739417629,0.54470296,16771.0,16770.0,3.97309755]
[1672739418846,0.54470296,16771.0,16770.0,3.37679555]
[1672739419100,0.54470296,16771.0,16770.0,3.55349555]
[1672739419348,0.54470296,16771.0,16770.0,4.16799355]
[1672739422066,0.54470296,16771.0,16770.0,4.76429555]
[1672739423646,0.00796303,16771.0,16770.0,4.76429555]
[1672739424127,0.00796303,16771.0,16770.0,4.06298631]
[1672739424699,0.45523201,16771.0,16770.0,4.83618831]
[1672739425201,0.8129982,16771.0,16770.0,4.83618831]
[1672739425436,0.45323201,16771.0,16770.0,4.72018831]
[1672739425715,0.81099538,16771.0,16770.0,4.72018831]
[1672739426192,0.81099538,16771.0,16770.0,4.85918831]
[1672739428416,1.07928009,16771.0,16770.0,4.85918831]
[1672739428667,0.63201111,16771.0,16770.0,4.85918831]
[1672739428934,0.81099538,16771.0,16770.0,4.85918831]
[1672739429188,0.63198115,16771.0,16770.0,4.85918831]
[1672739430445,1.07925013,16771.0,16770.0,4.85918831]
[1672739430695,1.07928053,16771.0,16770.0,4.85918831]
[1672739430953,0.81099538,16771.0,16770.0,4.85918831]
[1672739431193,0.6320128,16771.0,16770.0,4.85918831]
[1672739431711,0.63197201,16771.0,16770.0,4.85918831]
[1672739432204,0.63197201,16771.0,16770.0,5.40078712]
[1672739432452,1.07924099,16771.0,16770.0,5.40078712]
[1672739432960,0.63197201,16771.0,16770.0,5.40078712]
[1672739433500,0.63197201,16771.0,16770.0,4.85918831]
[1672739433749,1.07924099,16771.0,16770.0,4.85918831]
[1672739434024,1.07924099,16771.0,16770.0,5.40983207]
[1672739434248,0.63197201,16771.0,16770.0,5.40983207]
[1672739436257,0.63197201,16771.0,16770.0,5.40971721]
[1672739437038,0.81075351,16771.0,16770.0,4.85907345]
[1672739437360,0.63197201,16771.0,16770.0,4.85907345]
[1672739437588,0.63197201,16771.0,16770.0,4.15907345]
[1672739439090,0.63197201,16771.0,16770.0,4.85907345]
[1672739439349,0.63197201,16771.0,16770.0,5.37425177]
[1672739439848,0.63197201,16771.0,16770.0,4.85907345]
[1672739440360,0.63197201,16771.0,16770.0,5.36550815]
[1672739441074,0.63197201,16771.0,16770.0,4.85907345]
[1672739441335,0.81074174,16771.0,16770.0,4.85907345]
[1672739441576,0.63197201,16771.0,16770.0,5.41146661]
[1672739443060,0.81099538,16771.0,16770.0,5.41146661]
[1672739445573,0.81085102,16771.0,16770.0,5.41146661]
[1672739445819,0.45323201,16771.0,16770.0,5.41146661]
[1672739446073,0.81085034,16771.0,16770.0,5.41146661]
[1672739446322,0.45323201,16771.0,16770.0,4.89345263]
[1672739446577,0.45323201,16771.0,16770.0,4.62006861]
[1672739455019,0.00596303,16771.0,16770.0,4.62006861]
[1672739455524,0.4533762,16771.0,16770.0,4.62006861]
[1672739456735,0.4533762,16771.0,16770.0,4.61997148]
[1672739456984,0.00596303,16771.0,16770.0,4.61997148]
[1672739457228,0.00596303,16771.0,16770.0,5.23446948]
[1672739458880,0.00596303,16771.0,16770.0,4.53446948]
[1672739459136,0.00596303,16771.0,16770.0,3.91997148]
[1672739459381,0.00596303,16771.0,16770.0,4.61997148]
[1672739459880,0.00596303,16771.0,16770.0,5.23446948]
[1672739462639,0.00596303,16771.0,16770.0,4.61997148]
[1672739464426,0.54270296,16771.0,16770.0,4.61997148]
[1672739465192,0.00596303,16771.0,16770.0,4.61997148]
[1672739466452,0.54270296,16771.0,16770.0,4.61997148]
[1672739467409,0.00596303,16771.0,16770.0,4.61997148]
[1672739467951,0.54270296,16771.0,16770.0,4.61997148]
[1672739469771,0.54270296,16771.0,16770.0,3.91997148]
[1672739470019,0.54270296,16771.0,16770.0,4.61997148]
[1672739475816,0.00596303,16771.0,16770.0,4.61997148]
[1672739476082,0.54270296,16771.0,16770.0,4.61997148]
[1672739476660,0.00596303,16771.0,16770.0,4.61997148]
[1672739481368,0.00596303,16771.0,16770.0,4.61986672]
[1672739483465,0.00596303,16771.0,16770.0,4.06747356]
[1672739483650,0.45366405,16771.0,16770.0,4.69814421]
[1672739483899,0.45365892,16771.0,16770.0,4.69814421]
[1672739484153,0.00596303,16771.0,16770.0,4.69814421]
[1672739488476,0.00596303,16771.0,16770.0,4.06747356]
[1672739488732,0.45365454,16771.0,16770.0,4.06747356]
[1672739488976,0.45363486,16771.0,16770.0,4.06747356]
[1672739489233,0.45363486,16771.0,16770.0,4.74492013]
[1672739489509,0.00596303,16771.0,16770.0,4.74492013]
[1672739490024,0.45363652,16771.0,16770.0,4.74492013]
[1672739490271,0.00596303,16771.0,16770.0,4.74492013]
[1672739491094,0.45362889,16771.0,16770.0,4.74492013]
[1672739494073,0.00596303,16771.0,16770.0,4.74492013]
[1672739499373,0.00596303,16771.0,16770.0,4.40380615]
[1672739499603,0.00596303,16771.0,16770.0,4.74492013]
[1672739500100,0.00596303,16771.0,16770.0,4.06747356]
[1672739500347,0.00596303,16771.0,16770.0,3.36747356]
[1672739500858,0.00596303,16771.0,16770.0,3.98226826]
[1672739501353,0.00596303,16771.0,16770.0,4.68226826]
[1672739501596,0.00596303,16771.0,16770.0,4.68197156]
[1672739502092,0.00596303,16771.0,16770.0,4.06747356]
[1672739502339,0.45360824,16771.0,16770.0,4.76324291]
[1672739502580,0.00596303,16771.0,16770.0,4.76324291]
[1672739503332,0.00596303,16771.0,16770.0,5.37774091]
[1672739503840,0.45360367,16771.0,16770.0,5.37774091]
[1672739504126,0.45360367,16771.0,16770.0,4.76324291]
[1672739504851,0.00596303,16771.0,16770.0,4.76324291]
[1672739505116,0.45359667,16771.0,16770.0,5.37774091]
[1672739505333,0.45359954,16771.0,16770.0,5.37774091]
[1672739506240,0.45359954,16771.0,16770.0,4.68189485]
[1672739506414,0.45359954,16771.0,16770.0,4.06739685]
[1672739506679,0.45359954,16771.0,16770.0,4.76553889]
[1672739507184,0.45359954,16771.0,16770.0,4.06553889]
[1672739508426,0.45359954,16771.0,16770.0,4.76553889]
[1672739510947,0.45359954,16771.0,16770.0,5.38003689]
[1672739511205,0.81169402,16771.0,16770.0,4.68189485]
[1672739511472,0.45359954,16771.0,16770.0,4.77142631]
[1672739511731,0.81174358,16771.0,16770.0,5.38592431]
[1672739511986,0.45359954,16771.0,16770.0,5.38592431]
[1672739512751,0.45359954,16771.0,16770.0,5.68592431]
[1672739513004,0.81174412,16771.0,16770.0,5.68592431]
[1672739513261,0.8117584,16771.0,16770.0,4.98189485]
[1672739514306,0.8117584,16771.0,16770.0,4.36739685]
[1672739515335,0.8117584,16771.0,16770.0,4.94891405]